Cogmind - Beta 17 @@@ ROGUE MODE // 2026.07.30 @ 20:02:22 Player: szymekc Result: Destroyed by DAS Turret with DAS Cannon Performance ------------- Evolutions (1) 500 Regions Visited (5) 1000 Robots Destroyed (80) 400 Value Destroyed (1758) 1758 Prototype IDs (48) 960 Alien Tech Used (0) 0 Bonus (367) 367 TOTAL SCORE: 4985 Bonus ------- Follower Combat Kills 67 Aligned with FarCom 300 Cogmind --------- Core Integrity 0/400 Matter 96/300 Energy 18/100 System Corruption 1% Temperature Cool (1) Movement Treading (160) Location -9/Exiles Parts ------- > --- POWER (1) -------- (None) > --- PROPULSION (3) --- Improved Treads > --- UTILITY (3) ------ Large Storage Unit Salvage Targeting Computer > --- WEAPON (2) ------- (None) > --- INVENTORY (15) --- Improved Treads Improved Heat Sink Hacking Suite Hacking Suite Beamcaster Autogun Improved Assault Rifle Improved Assault Rifle Improved Assault Rifle AWS/Gauss Rocket Launcher Field Lobotomy Kit (5) Great Maul Peak State ------------ > --- POWER ------------ Heavy Ion Engine > --- PROPULSION ------- Aerolev Unit Aerolev Unit Aerolev Unit > --- UTILITY ---------- Large Storage Unit Salvage Targeting Computer Medium Armor Plating > --- WEAPON ----------- YOLO Cannon > --- INVENTORY -------- Light Treads Improved Treads Improved Treads Aerolev Unit Hacking Suite Hacking Suite Hacking Suite Hacking Suite Improved Assault Rifle Improved Assault Rifle Rocket Launcher Great Maul [Rating: 43] Favorites ----------- Power Heavy Ion Engine Engine Heavy Ion Engine Propulsion Light Treads Treads Light Treads Leg Aluminum Leg Hover Unit Aerolev Unit Utility Large Storage Unit Device Heat Sink Storage Large Storage Unit Processor Salvage Targeting Computer Hackware Hacking Suite Protection Medium Armor Plating Weapon Autogun Energy Gun EM Pulse Gun Energy Cannon YOLO Cannon Ballistic Gun Autogun Ballistic Cannon Improved Light Cannon Launcher Grenade Launcher Impact Weapon Great Maul Special Melee Weapon Datajack Build | -11 -10 -10 -9 -9 -9 ------- Run | Yrd Mat Min Mat Min Exi Slots Evolved 2 | . . . 2 . . Power . | . . . . . . Propulsion 1 | . . . 1 . . Utility 1 | . . . 1 . . Weapon . | . . . . . . Parts Attached 65 | 7 17 3 26 . 12 Power 6 | 1 2 . 3 . . Engine 6 | 1 2 . 3 . . Core . | . . . . . . Reactor . | . . . . . . Propulsion 24 | 2 6 1 10 . 5 Treads 13 | 2 1 . 9 . 1 Leg 7 | . 5 1 . . 1 Wheel . | . . . . . . Hover 4 | . . . 1 . 3 Flight . | . . . . . . Utility 12 | 2 3 . 5 . 2 Device 5 | 1 2 . 2 . . Storage 3 | 1 1 . 1 . . Processor 1 | . . . 1 . . Hackware 2 | . . . . . 2 Protection 1 | . . . 1 . . Artifact . | . . . . . . Weapon 23 | 2 6 2 8 . 5 Energy Gun 5 | . 4 1 . . . Energy Cannon 2 | . . . 1 . 1 Ballistic Gun 9 | 2 1 . 4 . 2 Ballistic Cannon 2 | . . . 2 . . Launcher 3 | . 1 1 1 . . Special Weapon . | . . . . . . Impact Weapon 1 | . . . . . 1 Slashing Weapon . | . . . . . . Piercing Weapon . | . . . . . . Special Melee Weapon 1 | . . . . . 1 Unidentified Prototypes 4 | . . . 4 . . Parts Lost 14 | . 1 1 4 . 8 Power 1 | . . . . . 1 Propulsion 6 | . . . 1 . 5 Utility 3 | . . . 2 . 1 Weapon 4 | . 1 1 1 . 1 Highest Loss Streak 5 | . 1 1 2 . 5 To Critical Strikes . | . . . . . . Average Backups 10 | 1 6 9 12 15 10 Power . | . . 1 . . . Propulsion 3 | . 1 2 5 6 3 Utility 2 | . 1 1 2 4 2 Weapon 3 | 1 3 3 2 4 4 Tool/Special . | . . . . . . Unused Backups 21 | . 3 . 11 . 7 Power 2 | . . . 2 . . Propulsion 4 | . 1 . 2 . 1 Utility 6 | . 1 . 2 . 3 Weapon 8 | . 1 . 5 . 2 Tool/Special 1 | . . . . . 1 Average Slot Usage (%) 97 | . 99 100 97 100 89 Engine 11 | . 14 14 11 11 10 Treads 22 | . 16 . 30 33 20 Leg 7 | . 11 28 2 . 3 Hover 1 | . . . . . 7 Device 10 | . 14 14 17 . . Storage 11 | . 14 14 11 11 7 Processor 4 | . . . 1 11 11 Hackware 1 | . . . . . 7 Protection 3 | . . . . 11 6 Energy Gun 6 | . 13 22 1 . . Energy Cannon 1 | . . . . . 6 Ballistic Gun 10 | . 14 5 9 22 . Ballistic Cannon 3 | . . . 10 . . Peak Build Rating 43 | 9 10 10 21 21 43 Average Rating 16 | 7 9 9 15 20 31 On Entrance 11 | . 9 10 10 21 21 Avg Prop Armor Cover (%) 7 | . 11 . . . 7 Naked Turns . | . . . . . . Heaviest Build 53 | 14 20 20 41 41 53 Greatest Support 63 | 40 40 20 63 63 63 Greatest Overweight (x) 3 | . . . . . 3 Average Overweight (x) . | . . . . . . Largest Inventory Capacity 15 | 8 10 10 15 15 15 Average Capacity 11 | 7 8 10 12 15 11 Most Carried 15 | 3 10 10 15 15 15 Average Carried 10 | 2 6 9 12 15 11 Final Capacity 15 | 8 10 10 15 15 15 Final Carried 15 | 3 10 10 15 15 14 Class Distribution -------------------- 75% | Mutant 18% | Scavenger-Mutant 6% | Hacker-Mutant Dominant Class ---------------- Mutant | -10/Materials Mutant | -10/Mines Mutant | -9/Materials Mutant | -9/Mines Mutant | -9/Exiles Resources | -11 -10 -10 -9 -9 -9 ----------- Run | Yrd Mat Min Mat Min Exi Matter Collected 2027 | 371 351 72 971 185 77 Remotely . | . . . . . . Salvage Created 2512 | 175 705 128 1297 177 30 Parts 157 | 12 30 11 92 12 . Haulers Intercepted 8 | . 2 . 6 . . Recyclers Shooed 4 | . 2 . 2 . . Parts Field Recycled . | . . . . . . Retrieved Matter . | . . . . . . Parts Self-Destructed . | . . . . . . Prevented . | . . . . . . Parts Restored . | . . . . . . Kills | -11 -10 -10 -9 -9 -9 ------- Run | Yrd Mat Min Mat Min Exi Combat Hostiles Destroyed 65 | . 12 8 29 9 7 Melee 1 | . . . . . 1 Guns 27 | . 10 2 11 4 . Cannons 8 | . . . 8 . . AOE 29 | . 2 6 10 5 6 Classes Destroyed 12 | 3 3 1 3 1 1 Worker 2 | 2 . . . . . Tunneler 2 | 2 . . . . . Hauler 8 | . 2 . 6 . . Recycler 6 | 1 1 . 4 . . Mechanic 1 | . 1 . . . . Operator 1 | . . . 1 . . Watcher 1 | . . . 1 . . Swarmer 24 | . . 6 13 5 . Grunt 25 | . 12 2 8 3 . Brawler 1 | . . . . 1 . Sentry 8 | . . . 8 . . Assembled 6 | . . . . . 6 Best Kill Streak 9 | 3 3 3 9 3 5 Combat Bots Only 7 | . 3 3 7 3 5 Max Kills in Single Turn 3 | 1 2 2 2 2 3 Gunslinging . | . . . . . . Exploded 3 | . 1 2 2 2 3 Melee 1 | . . . . . 1 Uniques/NPCs Destroyed 1 | . . . . . 1 8R-AWN (-9/Exiles) Combat | -11 -10 -10 -9 -9 -9 -------- Run | Yrd Mat Min Mat Min Exi Hostile Shots Fired 328 | . 61 22 138 21 86 Missed 102 | . 19 7 37 9 30 Hits 226 | . 42 15 101 12 56 Melee 3 | . . . . . 3 Projectile 223 | . 42 15 101 12 53 AOE 1 | . . . 1 . . Critical Strikes 13 | . 3 . 2 . 8 Damage Taken 3690 | . 565 181 1286 106 1552 Core 531 | . 80 51 86 . 314 Absorbed by Shields . | . . . . . . Core Remaining (%) 73 | 100 . 47 . . . Volleys Fired 227 | 33 48 13 79 13 41 Largest 2 | 2 2 2 2 2 1 Hottest 100 | 40 85 80 80 46 100 Shots Fired 391 | 66 90 22 149 24 40 Gun 277 | 66 87 18 85 21 . Cannon 95 | . . . 56 . 39 Launcher 19 | . 3 4 8 3 1 Special . | . . . . . . Kinetic 258 | 66 49 4 118 21 . Thermal 83 | . 30 . 14 . 39 Explosive 19 | . 3 4 8 3 1 Electromagnetic 31 | . 8 14 9 . . Robot Hit Streak 17 | 7 10 8 17 15 3 Robot Miss Streak 5 | 3 3 2 5 1 2 Penetration Max . | . . . . . . Secondary Targets . | . . . . . . Shots Hit Robots 235 | 39 61 14 88 18 15 Core Hits 133 | 11 33 13 51 12 13 Critical Kills . | . . . . . . Critical Parts Destroyed 2 | . . . . . 2 Critical Strikes 4 | . . . 1 . 3 Corrupt 1 | . . . 1 . . Smash 3 | . . . . . 3 Melee Attacks 7 | . . . . . 7 Impact 3 | . . . . . 3 Slashing . | . . . . . . Piercing . | . . . . . . Sneak Attacks 4 | . . . . . 4 Combat Hostiles . | . . . . . . Follow-up Attacks . | . . . . . . Damage Inflicted 6218 | 379 981 433 2087 653 1685 Guns 2422 | 379 753 159 864 267 . Cannons 1239 | . . . 603 . 636 Explosions 2346 | . 210 269 600 373 894 Melee 155 | . . . . . 155 Ramming 56 | . 18 5 20 13 . Kinetic 2298 | 379 376 23 1253 267 . Thermal 1949 | . 325 . 135 . 1489 Explosive 1493 | . 210 269 600 373 41 Electromagnetic 267 | . 52 136 79 . . Impact 155 | . . . . . 155 Slashing . | . . . . . . Piercing . | . . . . . . Highest Corruption 1 | . . . 1 1 1 Average Corruption 1 | . . . 1 1 1 Corruption Purged . | . . . . . . Corruption Blocked . | . . . . . . Effects 19 | . . . . 8 11 Message Errors 3 | . . . . 2 1 Matter Fused 7 | . . . . 2 5 Heat Flow Errors 2 | . . . . 2 . Energy Discharges 1 | . . . . . 1 Parts Fused 1 | . . . . . 1 Data Loss (minor) 2 | . . . . . 2 Data Loss (major) 1 | . . . . 1 . Misfires 1 | . . . . 1 . Weapon Failures 1 | . . . . . 1 Overload Shots . | . . . . . . Overflow Damage 182 | . . . 7 41 134 Projectiles 2 | . . . 2 . . Explosions 85 | . . . 5 41 39 Melee 95 | . . . . . 95 Knockbacks 5 | . . . 3 1 1 Impact 2 | . . . . 1 1 Kinetic 3 | . . . 3 . . Secondary . | . . . . . . Self-Inflicted Damage 80 | . . . 19 . 61 Shots 2 | . . . 1 . 1 Rammed 9 | . 3 . 5 1 . Targets Rammed 16 | . 5 3 7 1 . Kicked 5 | . 2 3 . . . Crushed 2 | . . . 2 . . Highest Temperature 280 | . 41 5 90 280 130 Average Temperature 39 | . 14 1 43 64 42 Received Heat Transfer 783 | . 369 75 303 36 . Siege Activations . | . . . . . . Martial Activations . | . . . . . . Shielding Activations . | . . . . . . Robots Disrupted . | . . . . . . Combat Hostiles . | . . . . . . Robots Corrupted . | . . . . . . Combat Hostiles . | . . . . . . Parts Fried . | . . . . . . Impact Corruptions 3 | . . . . . 3 Robots Melted . | . . . . . . Combat Hostiles . | . . . . . . Parts Melted 1 | . 1 . . . . Heat Transferred 2013 | . 753 . 300 . 960 Parts Sabotaged . | . . . . . . Parts Stolen . | . . . . . . Parts Stripped . | . . . . . . Power Chain Reactions . | . . . . . . Alert | -11 -10 -10 -9 -9 -9 ------- Run | Yrd Mat Min Mat Min Exi Maximum Alert Level 1 | . . . 1 1 . Low Security (%) 92 | 100 100 100 82 94 . Level 1 7 | . . . 17 5 . Level 2 . | . . . . . . Level 3 . | . . . . . . Level 4 . | . . . . . . Level 5 . | . . . . . . High Security . | . . . . . . Max Security . | . . . . . . Peak Influence 376 | 10 124 107 376 217 . Initial 133 | . . 16 20 133 . Average 101 | 1 47 31 168 123 . Influence Increases 1936 | 25 389 245 934 343 . Destroy 0b10 Robot/C 1220 | . 240 160 580 240 . Destroy 0b10 Robot/NC 105 | 25 20 . 60 . . Destroy Leader 288 | . 74 30 144 40 . Allied During Kill 16 | . . . . 16 . Successful Hack 34 | . 4 . 30 . . Disable Machine 120 | . 15 15 75 15 . Destroy Structure 93 | . 6 25 30 32 . Partial Spotted 15 | . . 15 . . . Lose Combat Pursuer 45 | . 30 . 15 . . Influence Decreases 1936 | 25 347 235 643 572 114 Entered New Map 382 | . . 26 32 210 114 Time Decay 1494 | 25 337 199 571 362 . Lost Part 60 | . 10 10 40 . . Squads Dispatched 4 | . 3 . 1 . . Investigation 3 | . 2 . 1 . . Extermination . | . . . . . . Reinforcement 1 | . 1 . . . . Assault . | . . . . . . Garrison . | . . . . . . Intercept . | . . . . . . Searches Triggered . | . . . . . . Construction Impeded . | . . . . . . Haulers Reinforced . | . . . . . . Active Scanning Responses . | . . . . . . Cargo Convoy Interrupts . | . . . . . . Stealth | -11 -10 -10 -9 -9 -9 --------- Run | Yrd Mat Min Mat Min Exi Distress Signals 4 | . 3 . 1 . . Communications Jammed . | . . . . . . Distress Signals . | . . . . . . Times Spotted 89 | . 25 8 42 11 3 Peak Tracking Total 9 | . 5 3 6 3 9 Tactical Retreats 4 | . 1 . 1 . 2 Traps | -11 -10 -10 -9 -9 -9 ------- Run | Yrd Mat Min Mat Min Exi Traps Triggered 5 | . 3 . 2 . . Indirectly . | . . . . . . Trap Hack Attempts . | . . . . . . Triggered . | . . . . . . Disarmed . | . . . . . . Reprogrammed . | . . . . . . Reused . | . . . . . . Traps Extracted . | . . . . . . Installed . | . . . . . . Triggered . | . . . . . . Machines | -11 -10 -10 -9 -9 -9 ---------- Run | Yrd Mat Min Mat Min Exi Machines Disabled 16 | . 1 1 5 1 8 Max in Single Turn 1 | . 1 1 1 1 1 Machines Repaired . | . . . . . . Machines Dismantled . | . . . . . . Machines Sabotaged . | . . . . . . Overloaded Fab Kills . | . . . . . . Hacking | -11 -10 -10 -9 -9 -9 --------- Run | Yrd Mat Min Mat Min Exi Machines Accessed 17 | . 6 1 8 . 2 Terminals 13 | . 5 1 7 . . Fabricators . | . . . . . . Repair Stations 1 | . 1 . . . . Recycling Units . | . . . . . . Scanalyzers 1 | . . . 1 . . Garrison Access . | . . . . . . Total Hacks 43 | . 14 1 21 . 7 Successful 24 | . 7 . 10 . 7 Failed 19 | . 7 1 11 . . Catastrophic 4 | . 1 . 3 . . Database Lockouts . | . . . . . . Manual 3 | . . . 2 . 1 Terminals 31 | . 10 1 20 . . Fabricators . | . . . . . . Repair Stations 4 | . 4 . . . . Recycling Units . | . . . . . . Scanalyzers 1 | . . . 1 . . Garrison Access . | . . . . . . Terminal Hacks 21 | . 5 . 9 . 7 Record 6 | . . . . . 6 Robot Analysis 1 | . . . 1 . . Prototype ID Bank 5 | . 2 . 3 . . Branch Access Points 1 | . . . 1 . . Locate Traps 2 | . 2 . . . . Hauler Manifests 2 | . . . 2 . . Registered Components 1 | . . . 1 . . Zone Layout 2 | . 1 . 1 . . Proto ID Catalog 1 | . . . . . 1 Fabricator Hacks . | . . . . . . Repair Station Hacks 2 | . 2 . . . . Scan Component 2 | . 2 . . . . Recycling Unit Hacks . | . . . . . . Scanalyzer 1 | . . . 1 . . Retrieve Study 1 | . . . 1 . . Garrison Access Hacks . | . . . . . . Unauthorized Hacks . | . . . . . . Terminals . | . . . . . . Fabricators . | . . . . . . Repair Stations . | . . . . . . Recycling Units . | . . . . . . Scanalyzers . | . . . . . . Garrison Access . | . . . . . . Data Cores Recovered 1 | . . . 1 . . Used . | . . . . . . Hacking Detections 11 | . 5 1 5 . . Full Trace Events 2 | . 1 . 1 . . Feedback Events . | . . . . . . Feedback Blocked . | . . . . . . Robot Schematics Acquired . | . . . . . . Robots Built . | . . . . . . Authchips . | . . . . . . Time . | . . . . . . Total Robot Build Rating . | . . . . . . Part Schematics Acquired . | . . . . . . Parts Built . | . . . . . . Authchips . | . . . . . . Time . | . . . . . . Total Part Build Rating . | . . . . . . Part Studies Acquired 1 | . . . 1 . . Parts Repaired . | . . . . . . Time . | . . . . . . Parts Recycled . | . . . . . . Recycled Matter . | . . . . . . Retrieved Matter . | . . . . . . Retrieved Components . | . . . . . . Parts Scanalyzed . | . . . . . . Part Schematics Acquired . | . . . . . . Parts Damaged . | . . . . . . Bothacking | -11 -10 -10 -9 -9 -9 ------------ Run | Yrd Mat Min Mat Min Exi Used RIF Installer . | . . . . . . Robots Hacked 4 | . . . . . 4 Non-combat 3 | . . . . . 3 Combat 1 | . . . . . 1 Robot Hacks Applied 4 | . . . . . 4 parse_system 4 | . . . . . 4 Relay Couplers Released . | . . . . . . Fabnet Peak Effective % . | . . . . . . Robots Rewired . | . . . . . . Allies Hacked . | . . . . . . Hacks Repelled . | . . . . . . Allies | -11 -10 -10 -9 -9 -9 -------- Run | Yrd Mat Min Mat Min Exi Total Allies 2 | . . . . 2 . Largest Group 2 | . . . . 2 2 Highest-Rated Group 45 | . . . . 45 45 Highest-Rated Ally 31 | . . . . 31 31 Total Orders . | . . . . . . Ally Attacks 9 | . . . . 9 . Total Damage 146 | . . . . 146 . Kills 3 | . . . . 3 . Allies Corrupted . | . . . . . . Allies Melted . | . . . . . . Intel | -11 -10 -10 -9 -9 -9 ------- Run | Yrd Mat Min Mat Min Exi Active Infowar (turns) 1659 | 139 214 . 1306 . . Terrain 353 | 139 214 . . . . Seismic 1306 | . . . 1306 . . Robot Analysis Total 1 | . . . 1 . . Derelict Logs Recovered 4 | . . 1 . 3 . Drone Launches . | . . . . . . Drone Recoveries . | . . . . . . Exploration | -11 -10 -10 -9 -9 -9 ------------- Run | Yrd Mat Min Mat Min Exi Turns Passed 5653 | 235 1100 727 1736 835 1020 Spaces Moved 3086 | 85 640 564 862 487 448 Core 5 | 5 . . . . . Treads 1992 | 80 298 . 815 487 312 Legs 985 | . 342 564 47 . 32 Wheels . | . . . . . . Hover 104 | . . . . . 104 Flight . | . . . . . . Fastest Speed 42 | 50 120 120 120 160 42 Average Speed 147 | 153 138 120 157 160 163 Slowest Speed 250 | 160 160 120 160 160 250 Overloaded Moves . | . . . . . . Propulsion Burnouts . | . . . . . . Robots Hopped . | . . . . . . Potential Cave-ins . | . . . . . . Cave-ins Triggered . | . . . . . . Exploration Rate (%) 72 | 5 99 96 83 98 56 Regions Visited 5 Branch Regions 3 Pre-discovered Areas 2 | . . . . 1 1 Known Exits Taken 1 | . . . 1 . . Unknown Exits Taken 4 | 1 1 1 . 1 . Scrap Searched 2 | . . 1 . 1 . Spaces Dug . | . . . . . . Terrain Destroyed 216 | . 4 28 43 37 104 Melee . | . . . . . . Projectile 6 | . . . 3 . 3 AOE 210 | . 4 28 40 37 101 Terrain Rammed . | . . . . . . Walls Destroyed . | . . . . . . Machines Disabled . | . . . . . . Actions | -11 -10 -10 -9 -9 -9 --------- Run | Yrd Mat Min Mat Min Exi Total 3709 | 127 766 591 1092 518 615 Wait 131 | . 25 1 38 12 55 Move 3081 | 84 639 563 861 486 448 Hop . | . . . . . . Pick Up 59 | 3 15 2 28 . 11 Fast Attach 31 | 7 4 . 9 . 11 Attach 16 | . 3 1 2 . 10 Detach 16 | . 1 . 1 . 14 Swap 65 | . 14 6 34 6 5 Drop 60 | . 12 2 33 . 13 Fire 227 | 33 48 13 79 13 41 Melee 7 | . . . . . 7 Ram . | . . . . . . Kick 5 | . 2 3 . . . Crush 11 | . 3 . 7 1 . Escape Stasis . | . . . . . . Rewire . | . . . . . . Trap . | . . . . . . Miscellaneous . | . . . . . . Route ------- -11/Scrapyard -10/Materials (discovered 4 exits: *Mat x3 / *Min) -10/Mines (discovered 3 exits: *Mat x2 / [*Sub]) -9/Materials (discovered 5 exits: [*Mat x3] / *Min x2) -9/Mines (discovered 3 exits: [*Mat x2] / *Exi) -9/Exiles History --------- Turn | Location | Event 5 | -11/Scrapyard | Discovered new exit (range 16) 236 | -11/Scrapyard | Entered Materials 313 | -10/Materials | Build established: Mutant 726 | -10/Materials | Discovered new exit (range 16) 903 | -10/Materials | Discovered new exit (range 15) 1014 | -10/Materials | Discovered new exit (range 3) 1232 | -10/Materials | Discovered new exit (range 16) 1336 | -10/Materials | Entered Mines 1364 | -10/Mines | Core integrity fell below 50% 1557 | -10/Mines | Discovered new exit (range 13) 1825 | -10/Mines | Discovered new exit (range 10) 2002 | -10/Mines | Discovered new exit (range 7) 2063 | -10/Mines | Entered Materials 2063 | -9/Materials | Evolved 2 slots: Propulsion x1, Utility x1 2130 | -9/Materials | Destroyed 7 combat bots 2684 | -9/Materials | Discovered new exit (range 16) 3029 | -9/Materials | Build established: Scavenger-Mutant 3107 | -9/Materials | Discovered new exit (range 10) 3279 | -9/Materials | Identified exit to Mines 3410 | -9/Materials | Discovered new exit (range 10) 3724 | -9/Materials | Build established: Mutant 3799 | -9/Materials | Entered Mines 3893 | -9/Mines | Discovered new exit (range 8) 3894 | -9/Mines | Met a Derelict bent on vengeance 3984 | -9/Mines | Learned location of 1 exit from Proximity Caves 4200 | -9/Mines | Discovered new exit (range 10) 4285 | -9/Mines | Learned location of Storage (-7) 4299 | -9/Mines | Found a hidden stash of uninstalled traps 4614 | -9/Mines | Deemed a non-threat by the Exiles lab entrance 4615 | -9/Mines | Discovered new exit (range 5) 4634 | -9/Mines | Entered Exiles 4634 | -9/Exiles | Accompanied by 2 allies 4664 | -9/Exiles | Led the pair of lost Derelicts to a safe place 4676 | -9/Exiles | Met 8R-AWN 4705 | -9/Exiles | Met EX-HEX 4767 | -9/Exiles | Met EX-DEC 4810 | -9/Exiles | Learned location of Zion (-7) 4839 | -9/Exiles | Met EX-BIN 4930 | -9/Exiles | Aligned with FarCom system 4931 | -9/Exiles | Given EX-Vault access code 4970 | -9/Exiles | Opened EX-Vault 4997 | -9/Exiles | Found YOLO Cannon 5065 | -9/Exiles | Attacked by the Exiles 5081 | -9/Exiles | Found Field Lobotomy Kit 5102 | -9/Exiles | Found AWS/Gauss 5198 | -9/Exiles | Core integrity fell below 50% 5214 | -9/Exiles | Destroyed 8R-AWN 5362 | -9/Exiles | Build established: Hacker-Mutant 5653 | -9/Exiles | Core integrity fell below 20% 5654 | -9/Exiles | Destroyed by DAS Turret with DAS Cannon Last Messages --------------- 05434_ Dropped Aerolev Unit. 05435_ Acquired Lgt. Treads. 05442_ Discarded Hacking Suite. 05442_ Acquired Lrg. Storage Unit. 05446_ Acquired Autogun+. 05450_ Acquired Imp. Assault Rifle. 05466_ Acquired AWS/Gauss. 05479_ Acquired Field Lobotomy Kit. 05487_ Discarded Hacking Suite. 05487_ Acquired Med. Armor Plating. 05496_ Acquired Hacking Suite. 05579_ Acquired Imp. Heat Sink. 05582_ Acquired Beamcaster. 05632_ Lgt. Treads destroyed. 05634_ Med. Armor Plating destroyed. 05640_ Hvy. Ion Engine destroyed. 05642_ Machine disabled. 05650_ YOLO Cannon destroyed. 05650_ Carbon-fiber Leg destroyed. 05654_ Acquired 6 matter. Map ----- +----------------------------------------------------+ | ????????????????????????????##" " """"#??? | | ????????????????????????????## """#??? | | ????????????????????????????#" """#??? | | ????????????????????????????#" """#??? | | ????????????????????????????#" """#??? | | ?????????????????#??????????#" """#??? | | ???????????????? """???????#" """#??? | | ????????????????" """#??????##" """""?? | | ????????????????" ????????## """#??? | | ???????????????"" ?????????#" "X" """"??? | | ???????????????"" "#????????#" """ #??? | | ??????????????? ""?????????#" """""""""#??? | | ??#?????????????" "?????????##" ###########??? | | ?? #???????????# #????????##"" #????????????? | | ? #####????### ###?######"" #????????????? | | """#####X# #"###""""""" ##???????????? | | """""" " "" ##???######## | | # "" """ " #####""""""" | | ?# " " " """ " | | ?### % "" | | ???### " | | ?????## | | ??????## | | ???????##" % % % | | ????????#""" % """""" | | ???????##" % @%######""" | | ???????#" ##????#####"""% | | ??????##" ;#?????????##""" | | ??????#""" ;;#??????????#"""" | | ??????#""" ;##??????????#"" | | ??????#"" ###???????????"""" | | ??????#""" #???????????? | | ??????#"" ????????? | | ??????##"" ?????? | | ???????#"""" ?????? | | ???????## ?????? " | | ????????#" " ??????? """ | | ????????#"""" ""????????? " " ""#" | | ????????#"" ""#????????????"? "???#" | | ????????#" """"??????????????????????# | | ??????????"" ""???????????????????????? | | ?????????? "????????????????????????? | | ???????????" """????????????????????????? | | ???????????""" ??????????????????????????? | | ????????????"""" ?????????????????????????????? | | ???????????????? ???????????????????????????????? | | ?????????????????????????????????????????????????? | | ?????????????????????????????????????????????????? | | ?????????????????????????????????????????????????? | | ?????????????????????????????????????????????????? | +----------------------------------------------------+ Best States ------------- Heat Dissipation 42 Energy Generation 14 Energy Capacity 280 Matter Stores 300 Matter Capacity 300 Sight Range 16 Terrain Scan Range 16 Terrain Scan Density 10 Armor Coverage 225 Evasion (%) 56 Recoil Reduction 3 Salvage Targeting 1 Offensive Hacking 20 Item Schematics ----------------- None Robot Schematics ------------------ None Fabricated ------------ Nothing Repaired ---------- Nothing Studied --------- Autogun | -9/Materials | Hacked Alien Tech Used ----------------- None Achievements -------------- None Challenges ------------ None Game ------ Seed MomentumMicroShielding Manual? 0 Play Time 00:34:14 Cumulative 1369.0 hours Start 2026.07.30 @ 19:27:36 End 2026.07.30 @ 20:02:22 Sessions 1 Manual Loads 0 Difficulty Rogue Special Mode None Game No. 432 Rogue 430 Adventurer 2 Explorer 0 Win Type - Total 121 Types 34/30/28/2/1/1/18/3/1/3 Lore% 98 Gallery% 92 Achievement% 93 Wizard Run 0 Options --------- Layout 0 ASCII 0 Keyboard 0 Movement Numpad Keybinds 0 Fullscreen 1 Font 24/Smallcaps Map View 76x50 Zoom Use 0% Tactical HUD 1 Map Filters NONE Filters NONE Steam 1 RUN: 6450109f-57af-4867-819f-adc45c8e68a8